[Event "Early-Titled-Tuesday-Blitz-December-26-2023"]
[Site "Chess.com"]
[Date "2023.12.26"]
[Round "9"]
[White "wonderfultime"]
[Black "Durarbayli"]
[Result "0-1"]
[WhiteElo "2999"]
[BlackElo "2883"]
[TimeControl "180+1"]
[EndTime "9:47:29 PST"]
[Termination "Durarbayli won by resignation"]

1. d4 {[%clk 0:03:00.9]} 1... d5 {[%clk 0:03:00.3]} 2. Nf3 {[%clk 0:02:59.9]}
2... Nf6 {[%clk 0:03:00.3]} 3. Bf4 {[%clk 0:03:00.6]} 3... c5 {[%clk 0:03:00.9]}
4. c3 {[%clk 0:02:53.4]} 4... Nc6 {[%clk 0:03:01.2]} 5. e3 {[%clk 0:02:52.1]}
5... Bf5 {[%clk 0:03:01.8]} 6. Qb3 {[%clk 0:02:51.7]} 6... Qd7 {[%clk
0:03:01.9]} 7. dxc5 {[%clk 0:02:48.1]} 7... e6 {[%clk 0:02:57.9]} 8. Ne5 {[%clk
0:02:45.6]} 8... Qc8 {[%clk 0:02:52.6]} 9. Qa4 {[%clk 0:02:12.4]} 9... Nd7
{[%clk 0:02:21.4]} 10. Nxd7 {[%clk 0:02:07.8]} 10... Qxd7 {[%clk 0:02:21]} 11.
b4 {[%clk 0:02:07.4]} 11... Be7 {[%clk 0:02:12.2]} 12. Bb5 {[%clk 0:02:07.4]}
12... O-O {[%clk 0:02:07.6]} 13. O-O {[%clk 0:02:07.5]} 13... a5 {[%clk
0:02:06.6]} 14. Qb3 {[%clk 0:02:02.6]} 14... Bf6 {[%clk 0:01:55.8]} 15. bxa5
{[%clk 0:01:30]} 15... Nxa5 {[%clk 0:01:30.6]} 16. Qb4 {[%clk 0:01:30.4]} 16...
Nc6 {[%clk 0:01:26.5]} 17. Qb3 {[%clk 0:01:30.3]} 17... e5 {[%clk 0:01:03.6]}
18. Bg3 {[%clk 0:01:30.2]} 18... Be6 {[%clk 0:01:04.3]} 19. a4 {[%clk
0:01:28.9]} 19... Qe7 {[%clk 0:01:00]} 20. Qa3 {[%clk 0:01:24.6]} 20... Rfc8
{[%clk 0:00:54.1]} 21. Nd2 {[%clk 0:01:22.3]} 21... Na7 {[%clk 0:00:54.2]} 22.
Be2 {[%clk 0:01:19.1]} 22... Qxc5 {[%clk 0:00:38.5]} 23. Nf3 {[%clk 0:01:09.6]}
23... Qc7 {[%clk 0:00:24.9]} 24. Rab1 {[%clk 0:01:05]} 24... Nc6 {[%clk
0:00:25.4]} 25. Rb5 {[%clk 0:01:04.7]} 25... Ra7 {[%clk 0:00:23.2]} 26. Rfb1
{[%clk 0:01:04.5]} 26... Rca8 {[%clk 0:00:23.8]} 27. Qb2 {[%clk 0:01:02]} 27...
Nd8 {[%clk 0:00:22.5]} 28. Bd1 {[%clk 0:00:52.9]} 28... Rc8 {[%clk 0:00:17.4]}
29. h3 {[%clk 0:00:52]} 29... h6 {[%clk 0:00:15.8]} 30. Bb3 {[%clk 0:00:46]}
30... Qxc3 {[%clk 0:00:10.1]} 31. Qxc3 {[%clk 0:00:46.4]} 31... Rxc3 {[%clk
0:00:11]} 32. Nxe5 {[%clk 0:00:47.1]} 32... Nc6 {[%clk 0:00:08.7]} 33. Nf3
{[%clk 0:00:41.2]} 33... d4 {[%clk 0:00:05.3]} 34. Bxe6 {[%clk 0:00:40]} 34...
fxe6 {[%clk 0:00:05.9]} 35. e4 {[%clk 0:00:19.7]} 35... Rxa4 {[%clk 0:00:05.3]}
36. Rxb7 {[%clk 0:00:18.3]} 36... d3 {[%clk 0:00:04.8]} 37. e5 {[%clk 0:00:17]}
37... Bd8 {[%clk 0:00:04]} 38. Rd7 {[%clk 0:00:17.2]} 38... Ra7 {[%clk
0:00:04.1]} 39. Rd6 {[%clk 0:00:17]} 39... Be7 {[%clk 0:00:03.3]} 40. Rxe6
{[%clk 0:00:10.7]} 40... Kf7 {[%clk 0:00:03.9]} 41. Rd6 {[%clk 0:00:09.8]} 41...
Bxd6 {[%clk 0:00:04.1]} 42. exd6 {[%clk 0:00:10.7]} 42... Ke6 {[%clk 0:00:03.7]}
43. Re1+ {[%clk 0:00:10.6]} 43... Kd5 {[%clk 0:00:04.1]} 44. Kh2 {[%clk
0:00:08.6]} 44... Rd7 {[%clk 0:00:04.1]} 45. Re3 {[%clk 0:00:08.6]} 45... Kc4
{[%clk 0:00:04]} 46. Nd2+ {[%clk 0:00:05.1]} 46... Kd5 {[%clk 0:00:03.2]} 47.
Re8 {[%clk 0:00:04.8]} 47... Nd4 {[%clk 0:00:03.5]} 48. Re5+ {[%clk 0:00:03.8]}
48... Kc6 {[%clk 0:00:03.2]} 49. Re4 {[%clk 0:00:04.5]} 49... Nb5 {[%clk
0:00:03]} 50. Rb4 {[%clk 0:00:04.5]} 50... Nxd6 {[%clk 0:00:03]} 51. Nf3 {[%clk
0:00:03.9]} 51... Nb5 {[%clk 0:00:03.3]} 52. Ne5+ {[%clk 0:00:04]} 52... Kc5
{[%clk 0:00:04.2]} 53. Rb1 {[%clk 0:00:04.2]} 53... Rd5 {[%clk 0:00:04.3]} 54.
Nf3 {[%clk 0:00:04.5]} 54... Na3 {[%clk 0:00:04.7]} 55. Ra1 {[%clk 0:00:04.4]}
55... Nc2 {[%clk 0:00:04.7]} 56. Rd1 {[%clk 0:00:04.3]} 56... Kc4 {[%clk
0:00:04.9]} 57. Nd2+ {[%clk 0:00:04.6]} 57... Kb5 {[%clk 0:00:05.5]} 58. Rb1+
{[%clk 0:00:04.9]} 58... Nb4 {[%clk 0:00:06]} 59. Ne4 {[%clk 0:00:05.1]} 59...
Rc4 {[%clk 0:00:06.1]} 60. Nd2 {[%clk 0:00:05.3]} 60... Rc2 {[%clk 0:00:06.2]}
61. Bf4 {[%clk 0:00:06.1]} 61... Rd4 {[%clk 0:00:05.9]} 62. Be3 {[%clk
0:00:06.6]} 62... Rd5 {[%clk 0:00:06.2]} 63. Nf3 {[%clk 0:00:06.7]} 63... Ka4
{[%clk 0:00:06.7]} 64. Nd2 {[%clk 0:00:06.7]} 64... Rb5 {[%clk 0:00:06.5]} 65.
Ne4 {[%clk 0:00:06.6]} 65... Na2 {[%clk 0:00:06.8]} 66. Rd1 {[%clk 0:00:07]}
66... Rd5 {[%clk 0:00:06.7]} 67. Ra1 {[%clk 0:00:07.1]} 67... Kb3 {[%clk
0:00:06.8]} 68. Rb1+ {[%clk 0:00:07.7]} 68... Rb2 {[%clk 0:00:06.9]} 69. Rd1
{[%clk 0:00:08.4]} 69... Nc3 {[%clk 0:00:06.3]} 70. Nd2+ {[%clk 0:00:08.9]}
70... Kc2 {[%clk 0:00:06.6]} 71. Ra1 {[%clk 0:00:09.6]} 71... Re5 {[%clk
0:00:06.2]} 72. Nc4 {[%clk 0:00:10]} 72... Rxe3 {[%clk 0:00:06.6]} 73. fxe3
{[%clk 0:00:07.7]} 73... Rb1 {[%clk 0:00:06.4]} 74. Na3+ {[%clk 0:00:06.3]}
74... Kb2 {[%clk 0:00:06.8]} 75. Nxb1 {[%clk 0:00:06.5]} 75... Nxb1 {[%clk
0:00:07.3]} 76. Ra7 {[%clk 0:00:06.7]} 76... d2 {[%clk 0:00:08.2]} 77. Rd7
{[%clk 0:00:07.3]} 77... Kc2 {[%clk 0:00:08.7]} 78. Kg3 {[%clk 0:00:07.9]} 78...
Nc3 {[%clk 0:00:09.3]} 79. Kf4 {[%clk 0:00:07.3]} 79... d1=Q {[%clk 0:00:09.7]}
80. Rxd1 {[%clk 0:00:08]} 80... Nxd1 {[%clk 0:00:10.6]} 81. e4 {[%clk
0:00:08.4]} 81... Kd3 {[%clk 0:00:10.2]} 82. e5 {[%clk 0:00:08]} 82... Kd4
{[%clk 0:00:10.2]} 83. e6 {[%clk 0:00:07.4]} 83... Ne3 {[%clk 0:00:11.1]} 84. h4
{[%clk 0:00:06.3]} 84... g6 {[%clk 0:00:11.2]} 85. g4 {[%clk 0:00:06.2]} 85...
Nd5+ {[%clk 0:00:11.4]} 86. Kf3 {[%clk 0:00:05.3]} 86... Ke5 {[%clk 0:00:12.3]}
0-1

[Event "Early-Titled-Tuesday-Blitz-December-26-2023"]
[Site "Chess.com"]
[Date "2023.12.26"]
[Round "9"]
[White "AlexanderL"]
[Black "vugarrasulov"]
[Result "1-0"]
[WhiteElo "2888"]
[BlackElo "2932"]
[TimeControl "180+1"]
[EndTime "9:47:37 PST"]
[Termination "AlexanderL won on time"]

1. Nf3 {[%clk 0:02:50.1]} 1... d5 {[%clk 0:02:59.1]} 2. e3 {[%clk 0:02:49.6]}
2... Nf6 {[%clk 0:02:58.3]} 3. c4 {[%clk 0:02:49.6]} 3... e6 {[%clk 0:02:58.3]}
4. Nc3 {[%clk 0:02:49.8]} 4... Bd6 {[%clk 0:02:57]} 5. b3 {[%clk 0:02:47.1]}
5... Nbd7 {[%clk 0:02:54.3]} 6. Bb2 {[%clk 0:02:47.4]} 6... b6 {[%clk
0:02:50.7]} 7. Rc1 {[%clk 0:02:46.4]} 7... a6 {[%clk 0:02:49.6]} 8. cxd5 {[%clk
0:02:46.3]} 8... exd5 {[%clk 0:02:49.5]} 9. Ne2 {[%clk 0:02:47]} 9... O-O {[%clk
0:02:45.3]} 10. g3 {[%clk 0:02:47.2]} 10... Bb7 {[%clk 0:02:44.3]} 11. Bg2
{[%clk 0:02:47.4]} 11... c5 {[%clk 0:02:44.1]} 12. O-O {[%clk 0:02:46.9]} 12...
Rc8 {[%clk 0:02:41.6]} 13. d4 {[%clk 0:02:41.3]} 13... Re8 {[%clk 0:02:35.8]}
14. Ne1 {[%clk 0:02:23.9]} 14... Ne4 {[%clk 0:02:31.1]} 15. dxc5 {[%clk
0:02:18.7]} 15... bxc5 {[%clk 0:02:32]} 16. Nd3 {[%clk 0:02:18]} 16... Ndf6
{[%clk 0:02:26.4]} 17. Nc3 {[%clk 0:02:15.2]} 17... Qe7 {[%clk 0:02:19.5]} 18.
Nxe4 {[%clk 0:02:09.9]} 18... dxe4 {[%clk 0:02:16.6]} 19. Nf4 {[%clk 0:02:09.6]}
19... Be5 {[%clk 0:02:09.1]} 20. Bxe5 {[%clk 0:02:07.6]} 20... Qxe5 {[%clk
0:02:10]} 21. Qc2 {[%clk 0:02:04]} 21... a5 {[%clk 0:02:03.2]} 22. Qc3 {[%clk
0:02:02.9]} 22... g5 {[%clk 0:01:56]} 23. Qxe5 {[%clk 0:02:02.2]} 23... Rxe5
{[%clk 0:01:56.9]} 24. Ne2 {[%clk 0:02:02.3]} 24... Ba6 {[%clk 0:01:57.4]} 25.
Rfe1 {[%clk 0:02:02.3]} 25... Bxe2 {[%clk 0:01:53]} 26. Rxe2 {[%clk 0:02:02.3]}
26... Nd5 {[%clk 0:01:53.4]} 27. Rc4 {[%clk 0:01:59.7]} 27... f5 {[%clk
0:01:50.6]} 28. Rd2 {[%clk 0:01:52.9]} 28... Nb6 {[%clk 0:01:44.8]} 29. Rcc2
{[%clk 0:01:47.6]} 29... Kf7 {[%clk 0:01:40]} 30. Bf1 {[%clk 0:01:46.9]} 30...
Ke7 {[%clk 0:01:38.6]} 31. Bb5 {[%clk 0:01:38.8]} 31... Rd8 {[%clk 0:01:31.7]}
32. Rxd8 {[%clk 0:01:36.8]} 32... Kxd8 {[%clk 0:01:32.6]} 33. Rd2+ {[%clk
0:01:31.2]} 33... Rd5 {[%clk 0:01:28.8]} 34. Rc2 {[%clk 0:01:26.7]} 34... Kc7
{[%clk 0:01:26.6]} 35. Be2 {[%clk 0:01:20]} 35... Kd6 {[%clk 0:01:24.9]} 36. Kf1
{[%clk 0:01:17.5]} 36... f4 {[%clk 0:01:19.1]} 37. exf4 {[%clk 0:01:16.3]} 37...
gxf4 {[%clk 0:01:20]} 38. gxf4 {[%clk 0:01:16.4]} 38... Rf5 {[%clk 0:01:18.5]}
39. Rc3 {[%clk 0:01:16.8]} 39... Nd5 {[%clk 0:01:08]} 40. Rh3 {[%clk 0:01:16.5]}
40... Rxf4 {[%clk 0:01:03.6]} 41. Rxh7 {[%clk 0:01:14.4]} 41... e3 {[%clk
0:01:02.2]} 42. f3 {[%clk 0:01:13.1]} 42... Nc3 {[%clk 0:01:00.7]} 43. Rh6+
{[%clk 0:01:11.9]} 43... Kc7 {[%clk 0:01:00]} 44. Re6 {[%clk 0:01:07.8]} 44...
Nxa2 {[%clk 0:00:47.6]} 45. Rxe3 {[%clk 0:01:07.3]} 45... Nb4 {[%clk 0:00:42.7]}
46. Kg2 {[%clk 0:01:06.9]} 46... Nc2 {[%clk 0:00:41]} 47. Re7+ {[%clk
0:01:03.6]} 47... Kd6 {[%clk 0:00:40.9]} 48. Ra7 {[%clk 0:01:02.2]} 48... Nd4
{[%clk 0:00:41.4]} 49. Bd1 {[%clk 0:01:01.8]} 49... Nc6 {[%clk 0:00:38.3]} 50.
Rh7 {[%clk 0:00:43.8]} 50... Rd4 {[%clk 0:00:38.7]} 51. Be2 {[%clk 0:00:43.1]}
51... Rd2 {[%clk 0:00:39.1]} 52. Kf1 {[%clk 0:00:42.7]} 52... Nd4 {[%clk
0:00:39.4]} 53. Rh6+ {[%clk 0:00:36.5]} 53... Ke7 {[%clk 0:00:35.2]} 54. Bc4
{[%clk 0:00:35.4]} 54... Nxf3 {[%clk 0:00:34.3]} 55. h4 {[%clk 0:00:30.7]} 55...
Rh2 {[%clk 0:00:33.1]} 56. Ra6 {[%clk 0:00:28.5]} 56... Nd2+ {[%clk 0:00:28]}
57. Ke1 {[%clk 0:00:26]} 57... Nf3+ {[%clk 0:00:24.2]} 58. Kd1 {[%clk
0:00:25.8]} 58... Rxh4 {[%clk 0:00:23.1]} 59. Rxa5 {[%clk 0:00:25.7]} 59... Kd6
{[%clk 0:00:23.8]} 60. Ra8 {[%clk 0:00:23.6]} 60... Ke5 {[%clk 0:00:22.3]} 61.
Rd8 {[%clk 0:00:23.2]} 61... Nd4 {[%clk 0:00:20.6]} 62. Rd5+ {[%clk 0:00:22.6]}
62... Ke4 {[%clk 0:00:21.2]} 63. Rxc5 {[%clk 0:00:18.9]} 63... Rh1+ {[%clk
0:00:20]} 64. Kd2 {[%clk 0:00:18.7]} 64... Rh2+ {[%clk 0:00:19.9]} 65. Kc3
{[%clk 0:00:18.9]} 65... Rc2+ {[%clk 0:00:17.3]} 66. Kb4 {[%clk 0:00:19.2]}
66... Rh2 {[%clk 0:00:18.2]} 67. Rc8 {[%clk 0:00:17]} 67... Nc2+ {[%clk
0:00:17.8]} 68. Kc3 {[%clk 0:00:16.6]} 68... Ne3 {[%clk 0:00:16.4]} 69. Re8+
{[%clk 0:00:16.5]} 69... Kf4 {[%clk 0:00:16.9]} 70. Kd3 {[%clk 0:00:14.5]} 70...
Nd1 {[%clk 0:00:14.7]} 71. Re4+ {[%clk 0:00:14.1]} 71... Kf5 {[%clk 0:00:14.7]}
72. Re8 {[%clk 0:00:13.6]} 72... Nb2+ {[%clk 0:00:14.1]} 73. Kd4 {[%clk
0:00:13.5]} 73... Rh4+ {[%clk 0:00:13.5]} 74. Kc5 {[%clk 0:00:13.3]} 74... Kf6
{[%clk 0:00:12.2]} 75. Re2 {[%clk 0:00:12.5]} 75... Nd1 {[%clk 0:00:10.6]} 76.
b4 {[%clk 0:00:10.8]} 76... Nc3 {[%clk 0:00:10.4]} 77. Rc2 {[%clk 0:00:09.3]}
77... Ne4+ {[%clk 0:00:09.6]} 78. Kc6 {[%clk 0:00:09.6]} 78... Ke5 {[%clk
0:00:09.6]} 79. b5 {[%clk 0:00:09.5]} 79... Rh6+ {[%clk 0:00:10.1]} 80. Kc7
{[%clk 0:00:09.2]} 80... Rh7+ {[%clk 0:00:10.7]} 81. Kb6 {[%clk 0:00:09.8]}
81... Rh6+ {[%clk 0:00:10.5]} 82. Ka5 {[%clk 0:00:09.6]} 82... Kd4 {[%clk
0:00:11]} 83. Bb3 {[%clk 0:00:08.5]} 83... Nc5 {[%clk 0:00:09.2]} 84. Rc4+
{[%clk 0:00:07]} 84... Kd5 {[%clk 0:00:09.9]} 85. Kb4 {[%clk 0:00:05.7]} 85...
Nxb3 {[%clk 0:00:07.3]} 86. Kxb3 {[%clk 0:00:05.5]} 86... Rh1 {[%clk 0:00:08]}
87. Rc2 {[%clk 0:00:04.2]} 87... Kd6 {[%clk 0:00:07.5]} 88. Kb4 {[%clk
0:00:04.5]} 88... Ra1 {[%clk 0:00:07.3]} 89. b6 {[%clk 0:00:03.4]} 89... Kd7
{[%clk 0:00:04.1]} 90. Kb5 {[%clk 0:00:04]} 90... Ra2 {[%clk 0:00:04.2]} 91.
Rxa2 {[%clk 0:00:03.9]} 1-0

[Event "Early-Titled-Tuesday-Blitz-December-26-2023"]
[Site "Chess.com"]
[Date "2023.12.26"]
[Round "9"]
[White "Kotofeyca"]
[Black "disciplinedbrat"]
[Result "1/2-1/2"]
[WhiteElo "2416"]
[BlackElo "2308"]
[TimeControl "180+1"]
[EndTime "9:47:51 PST"]
[Termination "Game drawn by stalemate"]

1. d4 {[%clk 0:02:56.2]} 1... Nf6 {[%clk 0:02:56.1]} 2. c4 {[%clk 0:02:55.7]}
2... g6 {[%clk 0:02:52.9]} 3. f3 {[%clk 0:02:55.6]} 3... d5 {[%clk 0:02:48.8]}
4. cxd5 {[%clk 0:02:56.5]} 4... Nxd5 {[%clk 0:02:48.9]} 5. e4 {[%clk 0:02:57.1]}
5... Nb6 {[%clk 0:02:49.6]} 6. Nc3 {[%clk 0:02:57.7]} 6... Bg7 {[%clk
0:02:48.8]} 7. Be3 {[%clk 0:02:58.3]} 7... O-O {[%clk 0:02:46.1]} 8. Qd2 {[%clk
0:02:58.8]} 8... c5 {[%clk 0:02:45]} 9. dxc5 {[%clk 0:02:55]} 9... Qxd2+ {[%clk
0:02:42.5]} 10. Kxd2 {[%clk 0:02:55.2]} 10... N6d7 {[%clk 0:02:39.7]} 11. Kc2
{[%clk 0:02:35.1]} 11... Nc6 {[%clk 0:02:38.6]} 12. a3 {[%clk 0:02:30.1]} 12...
a5 {[%clk 0:02:24.7]} 13. Rd1 {[%clk 0:02:10.2]} 13... Nde5 {[%clk 0:02:12.6]}
14. Nd5 {[%clk 0:01:52.9]} 14... a4 {[%clk 0:01:51.2]} 15. h3 {[%clk 0:01:29.7]}
15... Be6 {[%clk 0:01:44]} 16. Nc7 {[%clk 0:01:28]} 16... Bb3+ {[%clk
0:01:43.2]} 17. Kc1 {[%clk 0:01:25.5]} 17... Rac8 {[%clk 0:01:42.8]} 18. Nd5
{[%clk 0:01:12.2]} 18... Bxd1 {[%clk 0:01:41.4]} 19. Kxd1 {[%clk 0:01:13.1]}
19... Rfd8 {[%clk 0:01:39.4]} 20. Kc2 {[%clk 0:01:05.8]} 20... b6 {[%clk
0:01:38.7]} 21. Nxb6 {[%clk 0:01:02.4]} 21... Rb8 {[%clk 0:01:37.7]} 22. Bb5
{[%clk 0:00:53.4]} 22... Nd4+ {[%clk 0:01:32.2]} 23. Bxd4 {[%clk 0:00:52.7]}
23... Rxd4 {[%clk 0:01:33.1]} 24. Ne2 {[%clk 0:00:49.9]} 24... Rdd8 {[%clk
0:01:26.1]} 25. Bxa4 {[%clk 0:00:48.1]} 25... Bh6 {[%clk 0:01:26.3]} 26. Rd1
{[%clk 0:00:44]} 26... Rxd1 {[%clk 0:01:25.7]} 27. Kxd1 {[%clk 0:00:44.9]} 27...
Nd3 {[%clk 0:01:23.1]} 28. b4 {[%clk 0:00:39.7]} 28... Nb2+ {[%clk 0:01:21.2]}
29. Kc2 {[%clk 0:00:38.9]} 29... Bg7 {[%clk 0:01:05.3]} 30. Bb3 {[%clk
0:00:29.9]} 30... Rd8 {[%clk 0:00:59.1]} 31. c6 {[%clk 0:00:18.7]} 31... Be5
{[%clk 0:00:55]} 32. Nc3 {[%clk 0:00:17.4]} 32... Nd3 {[%clk 0:00:53.4]} 33. Nc4
{[%clk 0:00:16.4]} 33... Ne1+ {[%clk 0:00:53.4]} 34. Kb2 {[%clk 0:00:16.3]}
34... Nd3+ {[%clk 0:00:51.7]} 35. Kc2 {[%clk 0:00:16.2]} 35... Ne1+ {[%clk
0:00:51.4]} 36. Kb2 {[%clk 0:00:15.4]} 36... Nd3+ {[%clk 0:00:42.4]} 37. Kb1
{[%clk 0:00:15.5]} 37... Bxc3 {[%clk 0:00:41.8]} 38. b5 {[%clk 0:00:15.9]} 38...
Nc5 {[%clk 0:00:41.2]} 39. b6 {[%clk 0:00:14.2]} 39... Rc8 {[%clk 0:00:13]} 40.
c7 {[%clk 0:00:14.1]} 40... Nb7 {[%clk 0:00:09]} 41. Kc2 {[%clk 0:00:13.9]}
41... Be1 {[%clk 0:00:07.4]} 42. a4 {[%clk 0:00:13.9]} 42... Bf2 {[%clk
0:00:08]} 43. a5 {[%clk 0:00:13.5]} 43... Nxa5 {[%clk 0:00:08.5]} 44. Nxa5
{[%clk 0:00:13.6]} 44... Bxb6 {[%clk 0:00:09.2]} 45. Nc4 {[%clk 0:00:13.5]}
45... Rxc7 {[%clk 0:00:09.4]} 46. Kd3 {[%clk 0:00:14.1]} 46... Bg1 {[%clk
0:00:09.1]} 47. Ne5 {[%clk 0:00:13]} 47... Kg7 {[%clk 0:00:08.7]} 48. Nxf7
{[%clk 0:00:12.4]} 48... Rd7+ {[%clk 0:00:07.9]} 49. Ke2 {[%clk 0:00:10.9]}
49... Rb7 {[%clk 0:00:08.3]} 50. Bd5 {[%clk 0:00:10]} 50... Rb2+ {[%clk
0:00:08.7]} 51. Kf1 {[%clk 0:00:10.2]} 51... Bd4 {[%clk 0:00:08.3]} 52. Ng5
{[%clk 0:00:09.8]} 52... Rf2+ {[%clk 0:00:08.7]} 53. Ke1 {[%clk 0:00:08.4]}
53... Ba7 {[%clk 0:00:05.5]} 54. Ne6+ {[%clk 0:00:09.3]} 54... Kf6 {[%clk
0:00:05.6]} 55. g4 {[%clk 0:00:09.7]} 55... Rxf3 {[%clk 0:00:05.2]} 56. h4
{[%clk 0:00:09.3]} 56... Re3+ {[%clk 0:00:04.3]} 57. Kf2 {[%clk 0:00:09.1]}
57... Rxe4+ {[%clk 0:00:03.6]} 58. Kf3 {[%clk 0:00:06.8]} 58... Rxe6 {[%clk
0:00:04.3]} 59. g5+ {[%clk 0:00:06.1]} 59... Kf7 {[%clk 0:00:04.6]} 60. Kf4
{[%clk 0:00:06.6]} 60... Bd4 {[%clk 0:00:04.4]} 61. h5 {[%clk 0:00:06.4]} 61...
gxh5 {[%clk 0:00:04.2]} 62. Kg3 {[%clk 0:00:06.6]} 62... Be5+ {[%clk 0:00:02.9]}
63. Kh4 {[%clk 0:00:06.7]} 63... Kg6 {[%clk 0:00:02.6]} 64. Bxe6 {[%clk
0:00:06.1]} 64... Bf4 {[%clk 0:00:03.3]} 65. Bd7 {[%clk 0:00:04.8]} 65... Bxg5+
{[%clk 0:00:04.2]} 66. Kg3 {[%clk 0:00:05.4]} 66... e5 {[%clk 0:00:04.4]} 67.
Bc6 {[%clk 0:00:05.3]} 67... Bf4+ {[%clk 0:00:04.7]} 68. Kh3 {[%clk 0:00:04.6]}
68... Kg5 {[%clk 0:00:05]} 69. Kg2 {[%clk 0:00:04.7]} 69... h4 {[%clk
0:00:05.4]} 70. Kh3 {[%clk 0:00:05.2]} 70... h5 {[%clk 0:00:06]} 71. Bd5 {[%clk
0:00:05.5]} 71... Kf5 {[%clk 0:00:06.4]} 72. Bc6 {[%clk 0:00:05.7]} 72... Bg3
{[%clk 0:00:06.7]} 73. Kg2 {[%clk 0:00:04.9]} 73... Kf4 {[%clk 0:00:07.6]} 74.
Kh1 {[%clk 0:00:04.4]} 74... Ke3 {[%clk 0:00:08.5]} 75. Bb7 {[%clk 0:00:02.8]}
75... Kf2 {[%clk 0:00:09.1]} 76. Bc6 {[%clk 0:00:03.4]} 76... h3 {[%clk
0:00:09.7]} 77. Bb7 {[%clk 0:00:04]} 77... h2 {[%clk 0:00:08.9]} 78. Bc6 {[%clk
0:00:04.5]} 78... h4 {[%clk 0:00:09.2]} 79. Bb7 {[%clk 0:00:05.1]} 79... Bf4
{[%clk 0:00:09.1]} 80. Bc6 {[%clk 0:00:05.7]} 80... h3 {[%clk 0:00:06.7]} 81.
Bb7 {[%clk 0:00:06.4]} 81... Ke3 {[%clk 0:00:07.4]} 82. Bc6 {[%clk 0:00:06.9]}
82... Kd4 {[%clk 0:00:07.2]} 83. Bb7 {[%clk 0:00:07.4]} 83... Bg3 {[%clk
0:00:07.1]} 84. Bc6 {[%clk 0:00:07.7]} 84... Kc5 {[%clk 0:00:07.7]} 85. Bb7
{[%clk 0:00:08.3]} 85... Kb6 {[%clk 0:00:07.7]} 86. Ba8 {[%clk 0:00:08.6]} 86...
Kc5 {[%clk 0:00:07.8]} 87. Bb7 {[%clk 0:00:08.8]} 87... Kd6 {[%clk 0:00:07.9]}
88. Ba8 {[%clk 0:00:09.7]} 88... Kc7 {[%clk 0:00:08.2]} 89. Bb7 {[%clk
0:00:09.8]} 89... Kxb7 {[%clk 0:00:08.7]} 1/2-1/2